[Event "Titled Tuesday Blitz May 4 2021"]
[White "Gusarov, Grigory"]
[Black "Ognean, Mihnea-Ionut"]
[WhiteFideId "24102172"]
[BlackFideId "1232347"]
[WhiteElo "2285"]
[BlackElo "2012"]
[Result "1-0"]
[Round "11"]
[TimeControl "180+1"]
[Date "2021.05.04"]
[WhiteClock "0:00:19"]
[BlackClock "0:00:09"]

1. d4 {[%clk 0:03:00]}  Nf6 {[%clk 0:03:00]} 2. Nf3 {[%clk 0:03:00]}  e6 {[%clk 0:03:00]} 3. c4 {[%clk 0:03:00]}  d5 {[%clk 0:02:59]} 4. g3 {[%clk 0:02:56]}  dxc4 {[%clk 0:02:57]} 5. Qa4+ {[%clk 0:02:56]}  Nbd7 {[%clk 0:02:40]} 6. Bg2 {[%clk 0:02:55]}  a6 {[%clk 0:02:39]} 7. Qxc4 {[%clk 0:02:55]}  b5 {[%clk 0:02:40]} 8. Qc2 {[%clk 0:02:47]}  Bb7 {[%clk 0:02:39]} 9. O-O {[%clk 0:02:47]}  c5 {[%clk 0:02:37]} 10. dxc5 {[%clk 0:02:42]}  Bxc5 {[%clk 0:02:29]} 11. a4 {[%clk 0:02:41]}  O-O {[%clk 0:02:17]} 12. axb5 {[%clk 0:02:42]}  axb5 {[%clk 0:02:17]} 13. Rxa8 {[%clk 0:02:41]}  Qxa8 {[%clk 0:02:18]} 14. Nc3 {[%clk 0:02:40]}  b4 {[%clk 0:02:18]} 15. Na4 {[%clk 0:02:35]}  Be4 {[%clk 0:02:06]} 16. Qd1 {[%clk 0:02:34]}  Be7 {[%clk 0:01:56]} 17. Ne1 {[%clk 0:02:07]}  Rd8 {[%clk 0:01:49]} 18. Bxe4 {[%clk 0:01:59]}  Nxe4 {[%clk 0:01:45]} 19. Qc2 {[%clk 0:01:34]}  Ndc5 {[%clk 0:01:42]} 20. Nxc5 {[%clk 0:01:32]}  Nxc5 {[%clk 0:01:38]} 21. Be3 {[%clk 0:01:30]}  Qd5 {[%clk 0:00:51]} 22. Bxc5 {[%clk 0:01:25]}  Bxc5 {[%clk 0:00:48]} 23. Nd3 {[%clk 0:01:25]}  Be7 {[%clk 0:00:45]} 24. Ra1 {[%clk 0:01:02]}  h5 {[%clk 0:00:39]} 25. Ra7 {[%clk 0:01:01]}  Bf6 {[%clk 0:00:29]} 26. Nxb4 {[%clk 0:00:55]}  Qd1+ {[%clk 0:00:29]} 27. Qxd1 {[%clk 0:00:55]}  Rxd1+ {[%clk 0:00:30]} 28. Kg2 {[%clk 0:00:56]}  Bxb2 {[%clk 0:00:29]} 29. Nd3 {[%clk 0:00:54]}  Bf6 {[%clk 0:00:28]} 30. h4 {[%clk 0:00:51]}  g6 {[%clk 0:00:28]} 31. Ra8+ {[%clk 0:00:49]}  Kg7 {[%clk 0:00:28]} 32. Ra7 {[%clk 0:00:50]}  Rd2 {[%clk 0:00:24]} 33. Kf3 {[%clk 0:00:50]}  Rc2 {[%clk 0:00:24]} 34. Nf4 {[%clk 0:00:47]}  Rc6 {[%clk 0:00:23]} 35. e3 {[%clk 0:00:45]}  Rd6 {[%clk 0:00:20]} 36. Ra5 {[%clk 0:00:44]}  Rc6 {[%clk 0:00:19]} 37. Nd3 {[%clk 0:00:43]}  Rd6 {[%clk 0:00:19]} 38. Ke2 {[%clk 0:00:40]}  Rd7 {[%clk 0:00:19]} 39. f4 {[%clk 0:00:40]}  Rb7 {[%clk 0:00:19]} 40. Kf3 {[%clk 0:00:39]}  Rd7 {[%clk 0:00:19]} 41. Ra3 {[%clk 0:00:39]}  Rb7 {[%clk 0:00:19]} 42. e4 {[%clk 0:00:38]}  Rd7 {[%clk 0:00:18]} 43. e5 {[%clk 0:00:38]}  Be7 {[%clk 0:00:19]} 44. Rb3 {[%clk 0:00:38]}  Rc7 {[%clk 0:00:19]} 45. Nf2 {[%clk 0:00:38]}  Rd7 {[%clk 0:00:18]} 46. Ne4 {[%clk 0:00:38]}  Rc7 {[%clk 0:00:18]} 47. Rd3 {[%clk 0:00:38]}  Ra7 {[%clk 0:00:18]} 48. Nd2 {[%clk 0:00:35]}  Rc7 {[%clk 0:00:18]} 49. Nf1 {[%clk 0:00:33]}  Ra7 {[%clk 0:00:18]} 50. Ne3 {[%clk 0:00:33]}  Rc7 {[%clk 0:00:17]} 51. Rb3 {[%clk 0:00:32]}  Ra7 {[%clk 0:00:17]} 52. Nc4 {[%clk 0:00:30]}  Rc7 {[%clk 0:00:17]} 53. Nd2 {[%clk 0:00:28]}  Ra7 {[%clk 0:00:16]} 54. Ne4 {[%clk 0:00:28]}  Ra3 {[%clk 0:00:16]} 55. Rxa3 {[%clk 0:00:27]}  Bxa3 {[%clk 0:00:17]} 56. Ng5 {[%clk 0:00:27]}  Be7 {[%clk 0:00:17]} 57. Ne4 {[%clk 0:00:27]}  Kf8 {[%clk 0:00:17]} 58. Nd2 {[%clk 0:00:27]}  Ke8 {[%clk 0:00:17]} 59. Ke4 {[%clk 0:00:24]}  Kd7 {[%clk 0:00:17]} 60. Nf3 {[%clk 0:00:24]}  Bd8 {[%clk 0:00:17]} 61. Ke3 {[%clk 0:00:21]}  Bb6+ {[%clk 0:00:17]} 62. Ke2 {[%clk 0:00:21]}  Bd8 {[%clk 0:00:18]} 63. Nd2 {[%clk 0:00:21]}  Kc6 {[%clk 0:00:18]} 64. Kf3 {[%clk 0:00:22]}  Kd5 {[%clk 0:00:18]} 65. Ne4 {[%clk 0:00:22]}  Be7 {[%clk 0:00:18]} 66. Nf2 {[%clk 0:00:22]}  Bc5 {[%clk 0:00:17]} 67. Nh3 {[%clk 0:00:21]}  Be7 {[%clk 0:00:17]} 68. Ng1 {[%clk 0:00:21]}  Kc4 {[%clk 0:00:17]} 69. Ke4 {[%clk 0:00:20]}  Bc5 {[%clk 0:00:16]} 70. Nf3 {[%clk 0:00:19]}  Bf2 {[%clk 0:00:15]} 71. Ng5 {[%clk 0:00:19]}  Bxg3 {[%clk 0:00:15]} 72. Nxf7 {[%clk 0:00:20]}  Bxh4 {[%clk 0:00:16]} 73. Nh8 {[%clk 0:00:20]}  g5 {[%clk 0:00:15]} 74. Ng6 {[%clk 0:00:20]}  Bg3 {[%clk 0:00:12]} 75. fxg5 {[%clk 0:00:20]}  h4 {[%clk 0:00:12]} 76. Nxh4 {[%clk 0:00:18]}  Bxh4 {[%clk 0:00:12]} 77. g6 {[%clk 0:00:19]}  Be7 {[%clk 0:00:08]} 78. g7 {[%clk 0:00:19]}  Bc5 {[%clk 0:00:09]} 79. g8=Q {[%clk 0:00:19]} 1-0


[Site "https://www.chess.com"]

[Event "Titled Tuesday Blitz May 4 2021"]
[White "Guzman Moneo, Alberto"]
[Black "Lysenko, Volodymyr"]
[WhiteFideId "2209616"]
[BlackFideId "14175770"]
[WhiteElo "2157"]
[BlackElo "1957"]
[Result "1-0"]
[Round "11"]
[TimeControl "180+1"]
[Date "2021.05.04"]
[WhiteClock "0:00:06"]
[BlackClock "0:00:09"]

1. e4 {[%clk 0:03:00]}  e6 {[%clk 0:02:55]} 2. Nf3 {[%clk 0:02:56]}  d5 {[%clk 0:02:55]} 3. e5 {[%clk 0:02:56]}  c5 {[%clk 0:02:55]} 4. b4 {[%clk 0:02:56]}  cxb4 {[%clk 0:02:54]} 5. a3 {[%clk 0:02:55]}  Nc6 {[%clk 0:02:53]} 6. axb4 {[%clk 0:02:55]}  Bxb4 {[%clk 0:02:53]} 7. c3 {[%clk 0:02:56]}  Be7 {[%clk 0:02:50]} 8. d4 {[%clk 0:02:56]}  f6 {[%clk 0:02:41]} 9. Bd3 {[%clk 0:02:53]}  fxe5 {[%clk 0:02:38]} 10. Nxe5 {[%clk 0:02:53]}  Nxe5 {[%clk 0:02:35]} 11. dxe5 {[%clk 0:02:54]}  g6 {[%clk 0:02:03]} 12. h4 {[%clk 0:02:44]}  Qc7 {[%clk 0:02:01]} 13. Qe2 {[%clk 0:02:36]}  Bd7 {[%clk 0:01:13]} 14. h5 {[%clk 0:02:35]}  g5 {[%clk 0:01:13]} 15. h6 {[%clk 0:02:32]}  a6 {[%clk 0:01:11]} 16. Qh5+ {[%clk 0:02:27]}  Kd8 {[%clk 0:01:10]} 17. f4 {[%clk 0:02:13]}  Be8 {[%clk 0:01:10]} 18. Qg4 {[%clk 0:02:10]}  d4 {[%clk 0:00:58]} 19. c4 {[%clk 0:02:03]}  Nf6 {[%clk 0:00:48]} 20. exf6 {[%clk 0:02:02]}  Bxf6 {[%clk 0:00:43]} 21. Qxe6 {[%clk 0:01:56]}  Be7 {[%clk 0:00:32]} 22. Bf5 {[%clk 0:01:49]}  Bb4+ {[%clk 0:00:25]} 23. Bd2 {[%clk 0:01:38]}  Bxd2+ {[%clk 0:00:16]} 24. Nxd2 {[%clk 0:01:39]}  Qxf4 {[%clk 0:00:16]} 25. Rf1 {[%clk 0:00:55]}  Qg3+ {[%clk 0:00:16]} 26. Rf2 {[%clk 0:00:54]}  Qe3+ {[%clk 0:00:16]} 27. Qxe3 {[%clk 0:00:51]}  dxe3 {[%clk 0:00:17]} 28. Re2 {[%clk 0:00:50]}  exd2+ {[%clk 0:00:17]} 29. Rxd2+ {[%clk 0:00:51]}  Kc7 {[%clk 0:00:18]} 30. g4 {[%clk 0:00:43]}  Bc6 {[%clk 0:00:18]} 31. Kf2 {[%clk 0:00:42]}  Rhe8 {[%clk 0:00:18]} 32. Bxh7 {[%clk 0:00:39]}  Re6 {[%clk 0:00:16]} 33. Bf5 {[%clk 0:00:38]}  Rxh6 {[%clk 0:00:16]} 34. Rad1 {[%clk 0:00:35]}  Rah8 {[%clk 0:00:16]} 35. Ke3 {[%clk 0:00:34]}  Rh3+ {[%clk 0:00:16]} 36. Kd4 {[%clk 0:00:32]}  Rd8+ {[%clk 0:00:15]} 37. Ke5 {[%clk 0:00:32]}  Re3+ {[%clk 0:00:12]} 38. Kf6 {[%clk 0:00:32]}  Rf8+ {[%clk 0:00:10]} 39. Kxg5 {[%clk 0:00:32]}  a5 {[%clk 0:00:10]} 40. Kf4 {[%clk 0:00:30]}  Rh3 {[%clk 0:00:08]} 41. Ra1 {[%clk 0:00:28]}  a4 {[%clk 0:00:08]} 42. c5 {[%clk 0:00:27]}  a3 {[%clk 0:00:08]} 43. Rda2 {[%clk 0:00:26]}  Rc3 {[%clk 0:00:06]} 44. Rxa3 {[%clk 0:00:25]}  Rxc5 {[%clk 0:00:07]} 45. Re1 {[%clk 0:00:22]}  Rc4+ {[%clk 0:00:07]} 46. Kg5 {[%clk 0:00:21]}  Rg8+ {[%clk 0:00:07]} 47. Kh4 {[%clk 0:00:21]}  Rd4 {[%clk 0:00:07]} 48. Rc3 {[%clk 0:00:20]}  b5 {[%clk 0:00:07]} 49. Re6 {[%clk 0:00:20]}  Rd6 {[%clk 0:00:07]} 50. Rxd6 {[%clk 0:00:18]}  Kxd6 {[%clk 0:00:08]} 51. Rd3+ {[%clk 0:00:16]}  Kc5 {[%clk 0:00:08]} 52. Rc3+ {[%clk 0:00:16]}  Kb6 {[%clk 0:00:09]} 53. g5 {[%clk 0:00:16]}  b4 {[%clk 0:00:09]} 54. Rb3 {[%clk 0:00:16]}  Kc5 {[%clk 0:00:09]} 55. g6 {[%clk 0:00:16]}  Bd5 {[%clk 0:00:09]} 56. Rb1 {[%clk 0:00:14]}  b3 {[%clk 0:00:10]} 57. Kg5 {[%clk 0:00:13]}  Rb8 {[%clk 0:00:10]} 58. g7 {[%clk 0:00:12]}  Kb4 {[%clk 0:00:10]} 59. Kf6 {[%clk 0:00:11]}  Ka3 {[%clk 0:00:10]} 60. Ra1+ {[%clk 0:00:11]}  Kb2 {[%clk 0:00:10]} 61. Ra5 {[%clk 0:00:10]}  Bc4 {[%clk 0:00:10]} 62. Rc5 {[%clk 0:00:10]}  Kc3 {[%clk 0:00:10]} 63. Be6 {[%clk 0:00:09]}  Rb6 {[%clk 0:00:10]} 64. Rxc4+ {[%clk 0:00:09]}  Kd3 {[%clk 0:00:11]} 65. Rh4 {[%clk 0:00:07]}  b2 {[%clk 0:00:11]} 66. Rh3+ {[%clk 0:00:06]}  Kc2 {[%clk 0:00:12]} 67. Rh2+ {[%clk 0:00:06]}  Kc3 {[%clk 0:00:11]} 68. Rxb2 {[%clk 0:00:06]}  Kxb2 {[%clk 0:00:10]} 69. g8=Q {[%clk 0:00:06]}  Rb4 {[%clk 0:00:11]} 70. Qc8 {[%clk 0:00:06]}  Ka3 {[%clk 0:00:10]} 71. Ke7 {[%clk 0:00:06]}  Ra4 {[%clk 0:00:10]} 72. Qc5+ {[%clk 0:00:06]}  Rb4 {[%clk 0:00:10]} 73. Bd7 {[%clk 0:00:06]}  Kb3 {[%clk 0:00:08]} 74. Be6+ {[%clk 0:00:07]}  Ka3 {[%clk 0:00:09]} 75. Kd6 {[%clk 0:00:07]}  Ka4 {[%clk 0:00:08]} 76. Bd7+ {[%clk 0:00:06]}  Ka3 {[%clk 0:00:08]} 77. Qc3+ {[%clk 0:00:06]}  Rb3 {[%clk 0:00:08]} 78. Qa1+ {[%clk 0:00:06]}  Kb4 {[%clk 0:00:08]} 79. Be6 {[%clk 0:00:06]}  Ra3 {[%clk 0:00:09]} 80. Qb2+ {[%clk 0:00:06]}  Ka4 {[%clk 0:00:09]} 81. Bd7+ {[%clk 0:00:06]}  Ka5 {[%clk 0:00:08]} 82. Qxa3+ {[%clk 0:00:06]}  Kb6 {[%clk 0:00:09]} 1-0


[Site "https://www.chess.com"]

[Event "Titled Tuesday Blitz May 4 2021"]
[White "Haessel, Dale R."]
[Black "Khnykin, Nikolay"]
[WhiteFideId "2012618"]
[BlackFideId "4188853"]
[WhiteElo "2167"]
[BlackElo "2280"]
[Result "1/2-1/2"]
[Round "11"]
[TimeControl "180+1"]
[Date "2021.05.04"]
[WhiteClock "0:00:10"]
[BlackClock "0:00:07"]

1. d4 {[%clk 0:03:00]}  f5 {[%clk 0:02:53]} 2. g3 {[%clk 0:02:59]}  Nf6 {[%clk 0:02:52]} 3. Bg2 {[%clk 0:03:00]}  g6 {[%clk 0:02:52]} 4. Nf3 {[%clk 0:02:58]}  Bg7 {[%clk 0:02:52]} 5. O-O {[%clk 0:02:56]}  O-O {[%clk 0:02:50]} 6. c4 {[%clk 0:02:56]}  e6 {[%clk 0:02:50]} 7. Nc3 {[%clk 0:02:56]}  d6 {[%clk 0:02:50]} 8. b3 {[%clk 0:02:53]}  Nbd7 {[%clk 0:02:49]} 9. Bb2 {[%clk 0:02:52]}  e5 {[%clk 0:02:49]} 10. e4 {[%clk 0:02:38]}  fxe4 {[%clk 0:02:45]} 11. Ng5 {[%clk 0:02:31]}  exd4 {[%clk 0:02:34]} 12. Ncxe4 {[%clk 0:01:44]}  Nxe4 {[%clk 0:02:20]} 13. Bxe4 {[%clk 0:01:43]}  Nc5 {[%clk 0:02:11]} 14. Bd5+ {[%clk 0:01:37]}  Kh8 {[%clk 0:02:08]} 15. Nf7+ {[%clk 0:01:21]}  Rxf7 {[%clk 0:02:07]} 16. Bxf7 {[%clk 0:01:21]}  Bh3 {[%clk 0:02:06]} 17. Re1 {[%clk 0:01:19]}  Qf6 {[%clk 0:01:51]} 18. Bd5 {[%clk 0:01:15]}  Rf8 {[%clk 0:01:50]} 19. Qd2 {[%clk 0:01:05]}  Qf5 {[%clk 0:01:31]} 20. Rad1 {[%clk 0:01:01]}  c6 {[%clk 0:01:25]} 21. Bh1 {[%clk 0:00:53]}  Ne6 {[%clk 0:00:54]} 22. Be4 {[%clk 0:00:41]}  Qf6 {[%clk 0:00:49]} 23. Bh1 {[%clk 0:00:40]}  Ng5 {[%clk 0:00:44]} 24. Bxd4 {[%clk 0:00:37]}  Nf3+ {[%clk 0:00:40]} 25. Bxf3 {[%clk 0:00:31]}  Qxf3 {[%clk 0:00:38]} 26. Bxg7+ {[%clk 0:00:30]}  Kxg7 {[%clk 0:00:38]} 27. Qd4+ {[%clk 0:00:28]}  Kg8 {[%clk 0:00:26]} 28. Qe4 {[%clk 0:00:25]}  Qxf2+ {[%clk 0:00:22]} 29. Kh1 {[%clk 0:00:26]}  h5 {[%clk 0:00:11]} 30. a4 {[%clk 0:00:17]}  Bg4 {[%clk 0:00:11]} 31. Qxg6+ {[%clk 0:00:16]}  Kh8 {[%clk 0:00:10]} 32. Qh6+ {[%clk 0:00:16]}  Kg8 {[%clk 0:00:09]} 33. Qg5+ {[%clk 0:00:15]}  Kh8 {[%clk 0:00:07]} 34. Qh6+ {[%clk 0:00:13]}  Kg8 {[%clk 0:00:07]} 35. Qg6+ {[%clk 0:00:10]}  Kh8 {[%clk 0:00:07]} 36. Qh6+ {[%clk 0:00:10]} 1/2-1/2


[Site "https://www.chess.com"]

[Event "Titled Tuesday Blitz May 4 2021"]
[White "Harshavardhan G B"]
[Black "Eynullayev, Altay"]
[WhiteFideId "25059009"]
[BlackFideId "13413562"]
[WhiteElo "1825"]
[BlackElo "2079"]
[Result "1-0"]
[Round "11"]
[TimeControl "180+1"]
[Date "2021.05.04"]
[WhiteClock "0:00:55"]
[BlackClock "0:00:02"]

1. d4 {[%clk 0:03:00]}  Nf6 {[%clk 0:03:00]} 2. c4 {[%clk 0:03:00]}  e6 {[%clk 0:03:00]} 3. Nc3 {[%clk 0:03:00]}  Bb4 {[%clk 0:02:59]} 4. Qc2 {[%clk 0:02:57]}  O-O {[%clk 0:02:59]} 5. e4 {[%clk 0:02:50]}  d5 {[%clk 0:02:58]} 6. e5 {[%clk 0:02:47]}  Ne4 {[%clk 0:02:58]} 7. Bd3 {[%clk 0:02:45]}  c5 {[%clk 0:02:30]} 8. Ne2 {[%clk 0:02:39]}  cxd4 {[%clk 0:02:24]} 9. Nxd4 {[%clk 0:02:37]}  Qh4 {[%clk 0:02:23]} 10. g3 {[%clk 0:02:27]}  Qh5 {[%clk 0:02:11]} 11. Bf4 {[%clk 0:02:25]}  Nc5 {[%clk 0:01:46]} 12. cxd5 {[%clk 0:02:04]}  Nxd3+ {[%clk 0:01:38]} 13. Qxd3 {[%clk 0:02:05]}  exd5 {[%clk 0:01:39]} 14. O-O {[%clk 0:02:02]}  Nc6 {[%clk 0:01:34]} 15. Nxd5 {[%clk 0:02:00]}  Bc5 {[%clk 0:00:53]} 16. Nxc6 {[%clk 0:01:40]}  bxc6 {[%clk 0:00:54]} 17. Nc3 {[%clk 0:01:41]}  Bf5 {[%clk 0:00:46]} 18. Qe2 {[%clk 0:01:27]}  Qg6 {[%clk 0:00:42]} 19. Rfe1 {[%clk 0:01:12]}  Bd4 {[%clk 0:00:24]} 20. Ne4 {[%clk 0:01:07]}  Bxe4 {[%clk 0:00:13]} 21. Qxe4 {[%clk 0:01:07]}  Qxe4 {[%clk 0:00:12]} 22. Rxe4 {[%clk 0:01:08]}  Bxb2 {[%clk 0:00:13]} 23. Rb1 {[%clk 0:01:08]}  Ba3 {[%clk 0:00:13]} 24. Be3 {[%clk 0:01:04]}  Rab8 {[%clk 0:00:10]} 25. Rxb8 {[%clk 0:01:03]}  Rxb8 {[%clk 0:00:10]} 26. Ra4 {[%clk 0:01:04]}  Bb2 {[%clk 0:00:10]} 27. f4 {[%clk 0:01:02]}  g5 {[%clk 0:00:04]} 28. Kf2 {[%clk 0:01:00]}  gxf4 {[%clk 0:00:04]} 29. gxf4 {[%clk 0:01:01]}  Rd8 {[%clk 0:00:01]} 30. Rxa7 {[%clk 0:00:59]}  Bd4 {[%clk 0:00:02]} 31. Bxd4 {[%clk 0:00:57]}  Rxd4 {[%clk 0:00:03]} 32. Ke3 {[%clk 0:00:58]}  Rc4 {[%clk 0:00:03]} 33. a4 {[%clk 0:00:57]}  Kg7 {[%clk 0:00:03]} 34. f5 {[%clk 0:00:56]}  Kf8 {[%clk 0:00:02]} 35. a5 {[%clk 0:00:56]}  Rh4 {[%clk 0:00:02]} 36. a6 {[%clk 0:00:55]}  Rxh2 {[%clk 0:00:02]} 37. Rc7 {[%clk 0:00:55]}  Ra2 {[%clk 0:00:01]} 38. a7 {[%clk 0:00:55]}  Kg7 {[%clk 0:00:02]} 39. e6 {[%clk 0:00:55]}  h5 {[%clk 0:00:02]} 40. Rxf7+ {[%clk 0:00:55]}  Kh6 {[%clk 0:00:02]} 41. e7 {[%clk 0:00:55]} 1-0


[Site "https://www.chess.com"]

[Event "Titled Tuesday Blitz May 4 2021"]
[White "Havanecz, Bianka"]
[Black "Hartikainen, Jarmo"]
[WhiteFideId "704814"]
[BlackFideId "503134"]
[WhiteElo "2317"]
[BlackElo "2089"]
[Result "1-0"]
[Round "11"]
[TimeControl "180+1"]
[Date "2021.05.04"]
[WhiteClock "0:00:03"]
[BlackClock "0:00:03"]

1. d4 {[%clk 0:03:00]}  Nf6 {[%clk 0:02:59]} 2. c4 {[%clk 0:02:59]}  g6 {[%clk 0:02:59]} 3. Nc3 {[%clk 0:02:58]}  d5 {[%clk 0:02:59]} 4. Nf3 {[%clk 0:02:56]}  Bg7 {[%clk 0:02:58]} 5. Bf4 {[%clk 0:02:53]}  O-O {[%clk 0:02:56]} 6. Rc1 {[%clk 0:02:48]}  c6 {[%clk 0:02:51]} 7. e3 {[%clk 0:02:45]}  Bg4 {[%clk 0:02:42]} 8. Qb3 {[%clk 0:02:36]}  Bxf3 {[%clk 0:02:16]} 9. gxf3 {[%clk 0:02:34]}  b6 {[%clk 0:02:13]} 10. cxd5 {[%clk 0:02:31]}  Nxd5 {[%clk 0:02:08]} 11. Nxd5 {[%clk 0:02:31]}  cxd5 {[%clk 0:01:49]} 12. h4 {[%clk 0:02:16]}  h5 {[%clk 0:01:38]} 13. Bc7 {[%clk 0:01:50]}  Qd7 {[%clk 0:01:35]} 14. Bb5 {[%clk 0:01:45]}  Qf5 {[%clk 0:01:29]} 15. Ke2 {[%clk 0:01:37]}  Nd7 {[%clk 0:01:19]} 16. Bc6 {[%clk 0:01:07]}  Rac8 {[%clk 0:00:54]} 17. Bxd5 {[%clk 0:01:05]}  e5 {[%clk 0:00:17]} 18. Be4 {[%clk 0:00:51]}  Qe6 {[%clk 0:00:17]} 19. Qxe6 {[%clk 0:00:48]}  fxe6 {[%clk 0:00:17]} 20. dxe5 {[%clk 0:00:39]}  Nxe5 {[%clk 0:00:17]} 21. Bxe5 {[%clk 0:00:33]}  Bxe5 {[%clk 0:00:18]} 22. Bxg6 {[%clk 0:00:30]}  Bxb2 {[%clk 0:00:15]} 23. Rxc8 {[%clk 0:00:20]}  Rxc8 {[%clk 0:00:16]} 24. Bxh5 {[%clk 0:00:19]}  Bf6 {[%clk 0:00:16]} 25. Rg1+ {[%clk 0:00:18]}  Kf8 {[%clk 0:00:16]} 26. Bg6 {[%clk 0:00:18]}  Bxh4 {[%clk 0:00:15]} 27. Bd3 {[%clk 0:00:16]}  Bf6 {[%clk 0:00:15]} 28. f4 {[%clk 0:00:16]}  Rc5 {[%clk 0:00:15]} 29. Rg6 {[%clk 0:00:15]}  Kf7 {[%clk 0:00:14]} 30. Rh6 {[%clk 0:00:15]}  b5 {[%clk 0:00:15]} 31. Rh7+ {[%clk 0:00:15]}  Bg7 {[%clk 0:00:15]} 32. Rh1 {[%clk 0:00:14]}  a5 {[%clk 0:00:15]} 33. Rb1 {[%clk 0:00:13]}  b4 {[%clk 0:00:15]} 34. f3 {[%clk 0:00:13]}  Rc3 {[%clk 0:00:15]} 35. e4 {[%clk 0:00:12]}  Bf8 {[%clk 0:00:15]} 36. f5 {[%clk 0:00:12]}  a4 {[%clk 0:00:15]} 37. fxe6+ {[%clk 0:00:12]}  Kxe6 {[%clk 0:00:16]} 38. Kd2 {[%clk 0:00:12]}  Bd6 {[%clk 0:00:14]} 39. Ke3 {[%clk 0:00:11]}  Bc5+ {[%clk 0:00:14]} 40. Kd2 {[%clk 0:00:11]}  Bd6 {[%clk 0:00:13]} 41. Ke2 {[%clk 0:00:10]}  Ke5 {[%clk 0:00:14]} 42. Ke3 {[%clk 0:00:10]}  Bc5+ {[%clk 0:00:14]} 43. Kd2 {[%clk 0:00:10]}  Kd4 {[%clk 0:00:14]} 44. Be2 {[%clk 0:00:10]}  b3 {[%clk 0:00:13]} 45. axb3 {[%clk 0:00:10]}  axb3 {[%clk 0:00:14]} 46. Bd1 {[%clk 0:00:09]}  Rd3+ {[%clk 0:00:12]} 47. Ke2 {[%clk 0:00:10]}  Re3+ {[%clk 0:00:11]} 48. Kd2 {[%clk 0:00:10]}  Rd3+ {[%clk 0:00:11]} 49. Ke2 {[%clk 0:00:10]}  Re3+ {[%clk 0:00:11]} 50. Kf2 {[%clk 0:00:10]}  Kd3 {[%clk 0:00:09]} 51. Rxb3+ {[%clk 0:00:09]}  Kd2 {[%clk 0:00:09]} 52. Rxe3 {[%clk 0:00:06]}  Bxe3+ {[%clk 0:00:09]} 53. Kg3 {[%clk 0:00:06]}  Kxd1 {[%clk 0:00:08]} 54. e5 {[%clk 0:00:06]}  Kd2 {[%clk 0:00:07]} 55. e6 {[%clk 0:00:06]}  Bg5 {[%clk 0:00:07]} 56. Kg4 {[%clk 0:00:06]}  Be7 {[%clk 0:00:06]} 57. f4 {[%clk 0:00:05]}  Ke3 {[%clk 0:00:06]} 58. Kf5 {[%clk 0:00:02]}  Kd4 {[%clk 0:00:06]} 59. Kg6 {[%clk 0:00:02]}  Kd5 {[%clk 0:00:05]} 60. Kf7 {[%clk 0:00:03]}  Kd6 {[%clk 0:00:03]} 61. f5 {[%clk 0:00:03]} 1-0


[Site "https://www.chess.com"]

[Event "Titled Tuesday Blitz May 4 2021"]
[White "Hernandez Jimenez, Alexander Andres"]
[Black "Lagunow, Raphael"]
[WhiteFideId "3900452"]
[BlackFideId "24652644"]
[WhiteElo "2151"]
[BlackElo "2400"]
[Result "1-0"]
[Round "11"]
[TimeControl "180+1"]
[Date "2021.05.04"]
[WhiteClock "0:00:38"]
[BlackClock "0:00:21"]

1. e4 {[%clk 0:03:00]}  c5 {[%clk 0:02:57]} 2. Nf3 {[%clk 0:03:01]}  Nc6 {[%clk 0:02:56]} 3. d4 {[%clk 0:03:01]}  cxd4 {[%clk 0:02:57]} 4. Nxd4 {[%clk 0:03:02]}  Nf6 {[%clk 0:02:57]} 5. Nc3 {[%clk 0:03:00]}  e5 {[%clk 0:02:58]} 6. Ndb5 {[%clk 0:03:00]}  d6 {[%clk 0:02:58]} 7. Bg5 {[%clk 0:02:59]}  a6 {[%clk 0:02:59]} 8. Bxf6 {[%clk 0:02:56]}  gxf6 {[%clk 0:02:58]} 9. Na3 {[%clk 0:02:56]}  b5 {[%clk 0:02:59]} 10. Nd5 {[%clk 0:02:55]}  f5 {[%clk 0:02:59]} 11. exf5 {[%clk 0:02:52]}  Bxf5 {[%clk 0:02:59]} 12. Qf3 {[%clk 0:02:52]}  Nd4 {[%clk 0:01:41]} 13. Nc7+ {[%clk 0:02:50]}  Qxc7 {[%clk 0:01:42]} 14. Qxa8+ {[%clk 0:02:50]}  Ke7 {[%clk 0:01:40]} 15. Qxa6 {[%clk 0:02:08]}  Bh6 {[%clk 0:00:32]} 16. c3 {[%clk 0:02:06]}  b4 {[%clk 0:00:30]} 17. cxd4 {[%clk 0:01:37]}  bxa3 {[%clk 0:00:30]} 18. Qxa3 {[%clk 0:01:33]}  exd4 {[%clk 0:00:30]} 19. Bd3 {[%clk 0:01:19]}  Ra8 {[%clk 0:00:26]} 20. Qxa8 {[%clk 0:00:51]}  Bxd3 {[%clk 0:00:25]} 21. Rd1 {[%clk 0:00:49]}  Qc2 {[%clk 0:00:22]} 22. Qf3 {[%clk 0:00:44]}  Be4 {[%clk 0:00:22]} 23. Qe2 {[%clk 0:00:41]}  d5 {[%clk 0:00:22]} 24. Qxc2 {[%clk 0:00:38]}  Bxc2 {[%clk 0:00:21]} 25. Rxd4 {[%clk 0:00:38]} 1-0


[Site "https://www.chess.com"]

[Event "Titled Tuesday Blitz May 4 2021"]
[White "Ibrayev, Nurlan"]
[Black "Prydun, Andriy"]
[WhiteFideId "13700650"]
[BlackFideId "14145898"]
[WhiteElo "2366"]
[BlackElo "2033"]
[Result "0-1"]
[Round "11"]
[TimeControl "180+1"]
[Date "2021.05.04"]
[WhiteClock "0:00:06"]
[BlackClock "0:00:24"]

1. d4 {[%clk 0:03:00]}  d5 {[%clk 0:03:00]} 2. c4 {[%clk 0:03:00]}  c6 {[%clk 0:03:01]} 3. Nf3 {[%clk 0:03:00]}  Nf6 {[%clk 0:03:01]} 4. Nc3 {[%clk 0:03:00]}  e6 {[%clk 0:03:01]} 5. Bg5 {[%clk 0:02:59]}  h6 {[%clk 0:03:01]} 6. Bxf6 {[%clk 0:02:59]}  Qxf6 {[%clk 0:03:01]} 7. e4 {[%clk 0:02:59]}  dxe4 {[%clk 0:02:57]} 8. Nxe4 {[%clk 0:02:58]}  Bb4+ {[%clk 0:02:57]} 9. Ke2 {[%clk 0:02:58]}  Qd8 {[%clk 0:02:56]} 10. g3 {[%clk 0:02:50]}  O-O {[%clk 0:02:48]} 11. Bg2 {[%clk 0:02:50]}  b6 {[%clk 0:02:43]} 12. a3 {[%clk 0:02:42]}  Be7 {[%clk 0:02:42]} 13. Re1 {[%clk 0:02:42]}  Bb7 {[%clk 0:02:37]} 14. Kf1 {[%clk 0:02:42]}  Nd7 {[%clk 0:02:37]} 15. Qc2 {[%clk 0:02:06]}  Qc7 {[%clk 0:02:33]} 16. c5 {[%clk 0:02:05]}  bxc5 {[%clk 0:02:25]} 17. dxc5 {[%clk 0:02:05]}  a5 {[%clk 0:02:24]} 18. b4 {[%clk 0:02:01]}  axb4 {[%clk 0:02:23]} 19. axb4 {[%clk 0:02:01]}  Rxa1 {[%clk 0:02:23]} 20. Rxa1 {[%clk 0:02:00]}  Nf6 {[%clk 0:02:15]} 21. Kg1 {[%clk 0:01:26]}  Nd5 {[%clk 0:02:10]} 22. Qc4 {[%clk 0:01:17]}  Rb8 {[%clk 0:02:06]} 23. Ra7 {[%clk 0:01:13]}  Rd8 {[%clk 0:01:54]} 24. h4 {[%clk 0:01:11]}  Qb8 {[%clk 0:01:53]} 25. Ra1 {[%clk 0:01:10]}  Bc8 {[%clk 0:01:51]} 26. Rb1 {[%clk 0:01:05]}  e5 {[%clk 0:01:51]} 27. b5 {[%clk 0:00:45]}  Be6 {[%clk 0:01:49]} 28. b6 {[%clk 0:00:37]}  Ne3 {[%clk 0:01:46]} 29. Qc3 {[%clk 0:00:35]}  Nxg2 {[%clk 0:01:46]} 30. Kxg2 {[%clk 0:00:36]}  Bd5 {[%clk 0:01:45]} 31. Re1 {[%clk 0:00:33]}  f5 {[%clk 0:01:45]} 32. Ned2 {[%clk 0:00:19]}  e4 {[%clk 0:01:45]} 33. Nd4 {[%clk 0:00:14]}  Bf6 {[%clk 0:01:33]} 34. Kg1 {[%clk 0:00:12]}  Qe5 {[%clk 0:01:30]} 35. N2b3 {[%clk 0:00:10]}  Bxb3 {[%clk 0:01:28]} 36. Qxb3+ {[%clk 0:00:10]}  Kh7 {[%clk 0:01:28]} 37. Ne6 {[%clk 0:00:10]}  Rd3 {[%clk 0:01:27]} 38. Qa2 {[%clk 0:00:09]}  Qc3 {[%clk 0:01:20]} 39. Nf8+ {[%clk 0:00:09]}  Kh8 {[%clk 0:01:19]} 40. Rf1 {[%clk 0:00:09]}  Bd4 {[%clk 0:01:16]} 41. Ng6+ {[%clk 0:00:08]}  Kh7 {[%clk 0:01:15]} 42. Nf8+ {[%clk 0:00:08]}  Kh8 {[%clk 0:01:15]} 43. Kg2 {[%clk 0:00:08]}  Rd2 {[%clk 0:00:37]} 44. Qf7 {[%clk 0:00:07]}  Qf3+ {[%clk 0:00:36]} 45. Kh3 {[%clk 0:00:06]}  Qg4+ {[%clk 0:00:34]} 46. Kh2 {[%clk 0:00:07]}  Bxf2 {[%clk 0:00:27]} 47. Qc7 {[%clk 0:00:06]}  Bxg3+ {[%clk 0:00:25]} 48. Kh1 {[%clk 0:00:06]}  Qh3+ {[%clk 0:00:24]} 0-1


[Site "https://www.chess.com"]